[Event "Titled Tuesday Blitz February 15 Early 2022"]
[White "Vidit, Santosh Gujrathi"]
[Black "Vaishali, Rameshbabu"]
[WhiteFideId "5029465"]
[BlackFideId "5091756"]
[WhiteElo "2654"]
[BlackElo "2343"]
[Result "1-0"]
[Round "04"]
[TimeControl "180+1"]
[Date "2022.02.15"]
[WhiteClock "0:00:06"]
[BlackClock "0:00:01"]

1. Nf3 {[%clk 0:03:00]}  Nf6 {[%clk 0:02:59]} 2. g3 {[%clk 0:03:01]}  c5 {[%clk 0:02:58]} 3. Bg2 {[%clk 0:03:01]}  Nc6 {[%clk 0:02:59]} 4. O-O {[%clk 0:02:55]}  e5 {[%clk 0:02:49]} 5. e4 {[%clk 0:02:54]}  d6 {[%clk 0:02:43]} 6. c3 {[%clk 0:02:54]}  Be7 {[%clk 0:02:41]} 7. d3 {[%clk 0:02:49]}  O-O {[%clk 0:02:40]} 8. a3 {[%clk 0:02:50]}  a6 {[%clk 0:02:28]} 9. b4 {[%clk 0:02:49]}  b5 {[%clk 0:02:29]} 10. Re1 {[%clk 0:02:43]}  Re8 {[%clk 0:02:20]} 11. Bb2 {[%clk 0:02:31]}  Bf8 {[%clk 0:02:20]} 12. Nbd2 {[%clk 0:02:31]}  Bb7 {[%clk 0:02:17]} 13. d4 {[%clk 0:02:02]}  cxd4 {[%clk 0:02:04]} 14. cxd4 {[%clk 0:02:03]}  exd4 {[%clk 0:02:03]} 15. Nxd4 {[%clk 0:02:02]}  Ne5 {[%clk 0:01:51]} 16. Qb3 {[%clk 0:01:56]}  d5 {[%clk 0:01:43]} 17. Rad1 {[%clk 0:01:11]}  Rc8 {[%clk 0:01:35]} 18. Nf5 {[%clk 0:01:01]}  g6 {[%clk 0:01:19]} 19. Ne3 {[%clk 0:00:50]}  d4 {[%clk 0:00:21]} 20. Nd5 {[%clk 0:00:50]}  Nxd5 {[%clk 0:00:18]} 21. exd5 {[%clk 0:00:51]}  Nc4 {[%clk 0:00:12]} 22. Rxe8 {[%clk 0:00:46]}  Qxe8 {[%clk 0:00:12]} 23. Ne4 {[%clk 0:00:41]}  Bg7 {[%clk 0:00:09]} 24. Bxd4 {[%clk 0:00:37]}  Bxd4 {[%clk 0:00:06]} 25. Rxd4 {[%clk 0:00:38]}  Qe5 {[%clk 0:00:06]} 26. Rd1 {[%clk 0:00:27]}  Re8 {[%clk 0:00:05]} 27. a4 {[%clk 0:00:19]}  Kg7 {[%clk 0:00:05]} 28. axb5 {[%clk 0:00:19]}  axb5 {[%clk 0:00:06]} 29. Qc3 {[%clk 0:00:09]}  Qxc3 {[%clk 0:00:04]} 30. Nxc3 {[%clk 0:00:10]}  Nd6 {[%clk 0:00:04]} 31. Bf1 {[%clk 0:00:11]}  Rb8 {[%clk 0:00:03]} 32. f3 {[%clk 0:00:07]}  Bc8 {[%clk 0:00:02]} 33. Kf2 {[%clk 0:00:07]}  Bd7 {[%clk 0:00:03]} 34. Bd3 {[%clk 0:00:05]}  Rc8 {[%clk 0:00:03]} 35. Ne4 {[%clk 0:00:06]}  Nf5 {[%clk 0:00:02]} 36. Nc5 {[%clk 0:00:06]}  Rc7 {[%clk 0:00:02]} 37. Bxf5 {[%clk 0:00:06]}  Bxf5 {[%clk 0:00:01]} 38. d6 {[%clk 0:00:06]}  Ra7 {[%clk 0:00:01]} 39. g4 {[%clk 0:00:06]} 1-0


[Site "https://www.chess.com"]

[Event "Titled Tuesday Blitz February 15 Early 2022"]
[White "Voege, Tobias"]
[Black "Fajdetic, Hrvoje"]
[WhiteFideId "1270513"]
[BlackFideId "14501945"]
[WhiteElo "2335"]
[BlackElo "2140"]
[Result "1-0"]
[Round "04"]
[TimeControl "180+1"]
[Date "2022.02.15"]
[WhiteClock "0:00:18"]
[BlackClock "0:00:07"]

1. d4 {[%clk 0:03:00]}  e6 {[%clk 0:02:56]} 2. c4 {[%clk 0:03:00]}  f5 {[%clk 0:02:56]} 3. g3 {[%clk 0:03:00]}  Nf6 {[%clk 0:02:56]} 4. Bg2 {[%clk 0:03:01]}  Be7 {[%clk 0:02:56]} 5. Nf3 {[%clk 0:03:00]}  O-O {[%clk 0:02:56]} 6. O-O {[%clk 0:03:00]}  d6 {[%clk 0:02:57]} 7. b3 {[%clk 0:03:01]}  Nc6 {[%clk 0:02:57]} 8. Bb2 {[%clk 0:03:01]}  Qe8 {[%clk 0:02:56]} 9. Nc3 {[%clk 0:03:00]}  Ne4 {[%clk 0:02:53]} 10. Nxe4 {[%clk 0:02:57]}  fxe4 {[%clk 0:02:54]} 11. Ne1 {[%clk 0:02:55]}  d5 {[%clk 0:02:53]} 12. f3 {[%clk 0:02:55]}  exf3 {[%clk 0:02:48]} 13. exf3 {[%clk 0:02:56]}  Bf6 {[%clk 0:02:38]} 14. Rf2 {[%clk 0:02:42]}  Ne7 {[%clk 0:02:34]} 15. f4 {[%clk 0:02:40]}  c6 {[%clk 0:02:33]} 16. Nd3 {[%clk 0:02:34]}  Nf5 {[%clk 0:02:27]} 17. Ne5 {[%clk 0:02:29]}  Ne3 {[%clk 0:02:15]} 18. Qe2 {[%clk 0:02:24]}  Nxg2 {[%clk 0:02:15]} 19. Kxg2 {[%clk 0:02:22]}  b6 {[%clk 0:02:06]} 20. Ba3 {[%clk 0:02:19]}  c5 {[%clk 0:01:46]} 21. cxd5 {[%clk 0:02:11]}  Bb7 {[%clk 0:01:39]} 22. dxc5 {[%clk 0:02:04]}  Bxd5+ {[%clk 0:01:38]} 23. Kg1 {[%clk 0:02:03]}  Be7 {[%clk 0:01:29]} 24. Nd3 {[%clk 0:01:58]}  Qb5 {[%clk 0:01:21]} 25. Qe3 {[%clk 0:01:50]}  Rad8 {[%clk 0:01:08]} 26. Bb2 {[%clk 0:01:35]}  bxc5 {[%clk 0:00:48]} 27. Ne5 {[%clk 0:01:21]}  c4 {[%clk 0:00:44]} 28. bxc4 {[%clk 0:01:19]}  Bxc4 {[%clk 0:00:40]} 29. Qc3 {[%clk 0:01:17]}  Bd5 {[%clk 0:00:24]} 30. a4 {[%clk 0:00:58]}  Qc5 {[%clk 0:00:18]} 31. Nc6 {[%clk 0:00:33]}  Qxc3 {[%clk 0:00:15]} 32. Nxe7+ {[%clk 0:00:33]}  Kf7 {[%clk 0:00:15]} 33. Bxc3 {[%clk 0:00:34]}  Kxe7 {[%clk 0:00:15]} 34. Bb4+ {[%clk 0:00:35]}  Kf6 {[%clk 0:00:14]} 35. Bxf8 {[%clk 0:00:36]}  Rxf8 {[%clk 0:00:14]} 36. Rc1 {[%clk 0:00:35]}  Rf7 {[%clk 0:00:14]} 37. Rb2 {[%clk 0:00:35]}  h5 {[%clk 0:00:14]} 38. Kf2 {[%clk 0:00:35]}  Kf5 {[%clk 0:00:14]} 39. Ke3 {[%clk 0:00:35]}  g5 {[%clk 0:00:14]} 40. fxg5 {[%clk 0:00:32]}  Kxg5 {[%clk 0:00:15]} 41. Rf2 {[%clk 0:00:32]}  Rb7 {[%clk 0:00:14]} 42. Ra1 {[%clk 0:00:22]}  Rb3+ {[%clk 0:00:14]} 43. Kd4 {[%clk 0:00:22]}  h4 {[%clk 0:00:12]} 44. gxh4+ {[%clk 0:00:20]}  Kxh4 {[%clk 0:00:13]} 45. Rg1 {[%clk 0:00:20]}  Rb4+ {[%clk 0:00:11]} 46. Ke5 {[%clk 0:00:20]}  Re4+ {[%clk 0:00:11]} 47. Kd6 {[%clk 0:00:20]}  Rxa4 {[%clk 0:00:10]} 48. Rf8 {[%clk 0:00:20]}  Kh3 {[%clk 0:00:08]} 49. Rh8+ {[%clk 0:00:20]}  Rh4 {[%clk 0:00:08]} 50. Rxh4+ {[%clk 0:00:19]}  Kxh4 {[%clk 0:00:09]} 51. Rg3 {[%clk 0:00:19]}  a5 {[%clk 0:00:08]} 52. Kc5 {[%clk 0:00:19]}  a4 {[%clk 0:00:07]} 53. Kb4 {[%clk 0:00:20]}  Bb3 {[%clk 0:00:08]} 54. Re3 {[%clk 0:00:19]}  Kh5 {[%clk 0:00:07]} 55. Re4 {[%clk 0:00:17]}  Kg5 {[%clk 0:00:07]} 56. h4+ {[%clk 0:00:17]}  Kh5 {[%clk 0:00:07]} 57. Rf4 {[%clk 0:00:18]} 1-0


[Site "https://www.chess.com"]

[Event "Titled Tuesday Blitz February 15 Early 2022"]
[White "Vovk, Orest"]
[Black "Topalov, Aleksandar"]
[WhiteFideId "14113490"]
[BlackFideId "925659"]
[WhiteElo "2203"]
[BlackElo "2098"]
[Result "1-0"]
[Round "04"]
[TimeControl "180+1"]
[Date "2022.02.15"]
[WhiteClock "0:01:19"]
[BlackClock "0:00:11"]

1. h4 {[%clk 0:03:00]}  d5 {[%clk 0:02:53]} 2. h5 {[%clk 0:03:00]}  h6 {[%clk 0:02:53]} 3. e4 {[%clk 0:02:59]}  dxe4 {[%clk 0:02:53]} 4. Nc3 {[%clk 0:02:58]}  Nf6 {[%clk 0:02:53]} 5. Qe2 {[%clk 0:02:56]}  Nbd7 {[%clk 0:02:45]} 6. Nxe4 {[%clk 0:02:51]}  Nxe4 {[%clk 0:02:45]} 7. Qxe4 {[%clk 0:02:51]}  Nf6 {[%clk 0:02:44]} 8. Qd3 {[%clk 0:02:51]}  Bd7 {[%clk 0:02:35]} 9. Nf3 {[%clk 0:02:50]}  Bc6 {[%clk 0:02:35]} 10. Qxd8+ {[%clk 0:02:48]}  Rxd8 {[%clk 0:02:34]} 11. Ne5 {[%clk 0:02:49]}  Bd5 {[%clk 0:02:32]} 12. d3 {[%clk 0:02:42]}  b6 {[%clk 0:02:29]} 13. Bf4 {[%clk 0:02:40]}  e6 {[%clk 0:02:26]} 14. a3 {[%clk 0:02:39]}  Bd6 {[%clk 0:02:25]} 15. O-O-O {[%clk 0:02:37]}  O-O {[%clk 0:02:18]} 16. Rg1 {[%clk 0:02:25]}  c5 {[%clk 0:02:02]} 17. g4 {[%clk 0:02:18]}  Bxe5 {[%clk 0:02:01]} 18. Bxe5 {[%clk 0:02:18]}  Bf3 {[%clk 0:02:02]} 19. Bxf6 {[%clk 0:02:18]}  gxf6 {[%clk 0:01:58]} 20. Re1 {[%clk 0:02:18]}  Rd4 {[%clk 0:01:39]} 21. Be2 {[%clk 0:02:16]}  Bxe2 {[%clk 0:01:36]} 22. Rxe2 {[%clk 0:02:17]}  Rf4 {[%clk 0:01:34]} 23. Rg2 {[%clk 0:02:14]}  Rd8 {[%clk 0:01:34]} 24. Re4 {[%clk 0:02:12]}  Rd4 {[%clk 0:01:15]} 25. Rxf4 {[%clk 0:02:12]}  Rxf4 {[%clk 0:01:15]} 26. Kd2 {[%clk 0:02:12]}  Kf8 {[%clk 0:01:00]} 27. Ke3 {[%clk 0:02:12]}  e5 {[%clk 0:00:58]} 28. f3 {[%clk 0:02:12]}  c4 {[%clk 0:00:49]} 29. dxc4 {[%clk 0:02:07]}  Rxc4 {[%clk 0:00:49]} 30. c3 {[%clk 0:02:08]}  Ke7 {[%clk 0:00:48]} 31. Rd2 {[%clk 0:02:08]}  Rc5 {[%clk 0:00:42]} 32. Rd3 {[%clk 0:02:02]}  Rc4 {[%clk 0:00:39]} 33. b3 {[%clk 0:02:01]}  Rc5 {[%clk 0:00:36]} 34. c4 {[%clk 0:02:01]}  a5 {[%clk 0:00:32]} 35. a4 {[%clk 0:01:53]}  Rc6 {[%clk 0:00:30]} 36. Ke4 {[%clk 0:01:49]}  Rc8 {[%clk 0:00:27]} 37. Rd5 {[%clk 0:01:43]}  Rc6 {[%clk 0:00:26]} 38. Kf5 {[%clk 0:01:39]}  Rc5 {[%clk 0:00:18]} 39. Ke4 {[%clk 0:01:31]}  Rc6 {[%clk 0:00:16]} 40. Rb5 {[%clk 0:01:29]}  Kd6 {[%clk 0:00:13]} 41. c5+ {[%clk 0:01:24]}  Rxc5 {[%clk 0:00:08]} 42. Rxb6+ {[%clk 0:01:22]}  Rc6 {[%clk 0:00:09]} 43. Rxc6+ {[%clk 0:01:18]}  Kxc6 {[%clk 0:00:09]} 44. Kf5 {[%clk 0:01:18]}  Kc5 {[%clk 0:00:09]} 45. Kxf6 {[%clk 0:01:19]}  Kb4 {[%clk 0:00:10]} 46. g5 {[%clk 0:01:19]}  Kxb3 {[%clk 0:00:11]} 47. gxh6 {[%clk 0:01:19]}  Kxa4 {[%clk 0:00:11]} 48. h7 {[%clk 0:01:19]} 1-0


[Site "https://www.chess.com"]

[Event "Titled Tuesday Blitz February 15 Early 2022"]
[White "Vusatiuk, Vladimir"]
[Black "Kornyukov, Alexey"]
[WhiteFideId "14118610"]
[BlackFideId "4150457"]
[WhiteElo "2157"]
[BlackElo "2303"]
[Result "1-0"]
[Round "04"]
[TimeControl "180+1"]
[Date "2022.02.15"]
[WhiteClock "0:00:33"]
[BlackClock "0:01:22"]

1. d4 {[%clk 0:02:58]}  d5 {[%clk 0:02:58]} 2. c4 {[%clk 0:02:56]}  e6 {[%clk 0:02:58]} 3. Nc3 {[%clk 0:02:53]}  Be7 {[%clk 0:02:58]} 4. cxd5 {[%clk 0:02:52]}  exd5 {[%clk 0:02:57]} 5. Bf4 {[%clk 0:02:53]}  Nf6 {[%clk 0:02:55]} 6. e3 {[%clk 0:02:52]}  O-O {[%clk 0:02:55]} 7. Bd3 {[%clk 0:02:51]}  c5 {[%clk 0:02:53]} 8. dxc5 {[%clk 0:02:43]}  Bxc5 {[%clk 0:02:53]} 9. Nge2 {[%clk 0:02:43]}  Nc6 {[%clk 0:02:49]} 10. O-O {[%clk 0:02:40]}  Bg4 {[%clk 0:02:49]} 11. f3 {[%clk 0:02:37]}  Be6 {[%clk 0:02:47]} 12. Na4 {[%clk 0:02:37]}  Bd6 {[%clk 0:02:40]} 13. Rc1 {[%clk 0:02:17]}  Rc8 {[%clk 0:02:36]} 14. Nc5 {[%clk 0:02:13]}  Bxc5 {[%clk 0:02:30]} 15. Rxc5 {[%clk 0:02:14]}  Nb4 {[%clk 0:02:28]} 16. Rxc8 {[%clk 0:02:08]}  Bxc8 {[%clk 0:02:27]} 17. Bb1 {[%clk 0:02:03]}  Be6 {[%clk 0:02:25]} 18. Nd4 {[%clk 0:01:57]}  Nc6 {[%clk 0:02:23]} 19. Nxc6 {[%clk 0:01:34]}  bxc6 {[%clk 0:02:22]} 20. Qc2 {[%clk 0:01:33]}  g6 {[%clk 0:02:16]} 21. Qxc6 {[%clk 0:01:29]}  Nd7 {[%clk 0:02:09]} 22. Qc3 {[%clk 0:01:02]}  Qf6 {[%clk 0:02:04]} 23. Qxf6 {[%clk 0:01:01]}  Nxf6 {[%clk 0:02:03]} 24. Be5 {[%clk 0:01:00]}  Nd7 {[%clk 0:02:03]} 25. Bd4 {[%clk 0:01:00]}  Nb6 {[%clk 0:01:59]} 26. Rc1 {[%clk 0:00:56]}  Rc8 {[%clk 0:01:53]} 27. Rxc8+ {[%clk 0:00:56]}  Bxc8 {[%clk 0:01:52]} 28. b3 {[%clk 0:00:56]}  Bf5 {[%clk 0:01:47]} 29. Bxf5 {[%clk 0:00:55]}  gxf5 {[%clk 0:01:47]} 30. Bxb6 {[%clk 0:00:55]}  axb6 {[%clk 0:01:48]} 31. Kf2 {[%clk 0:00:41]}  Kf8 {[%clk 0:01:46]} 32. Kg3 {[%clk 0:00:41]}  Ke7 {[%clk 0:01:46]} 33. Kf4 {[%clk 0:00:42]}  Kf6 {[%clk 0:01:44]} 34. a4 {[%clk 0:00:41]}  Ke6 {[%clk 0:01:39]} 35. b4 {[%clk 0:00:40]}  f6 {[%clk 0:01:33]} 36. h4 {[%clk 0:00:34]}  h5 {[%clk 0:01:33]} 37. g3 {[%clk 0:00:34]}  d4 {[%clk 0:01:30]} 38. exd4 {[%clk 0:00:34]}  Kd5 {[%clk 0:01:30]} 39. a5 {[%clk 0:00:34]}  b5 {[%clk 0:01:25]} 40. Kxf5 {[%clk 0:00:32]}  Kxd4 {[%clk 0:01:22]} 41. a6 {[%clk 0:00:33]} 1-0


[Site "https://www.chess.com"]

[Event "Titled Tuesday Blitz February 15 Early 2022"]
[White "parintele_chess"]
[Black "Tsyhanchuk, Stanislav"]
[BlackFideId "13505130"]
[WhiteElo "2196"]
[BlackElo "2078"]
[Result "0-1"]
[Round "04"]
[TimeControl "180+1"]
[Date "2022.02.15"]
[WhiteClock "0:00:22"]
[BlackClock "0:00:23"]

1. d4 {[%clk 0:02:59]}  d5 {[%clk 0:02:59]} 2. Bf4 {[%clk 0:02:58]}  Bf5 {[%clk 0:02:58]} 3. Nf3 {[%clk 0:02:55]}  Nf6 {[%clk 0:02:58]} 4. e3 {[%clk 0:02:55]}  e6 {[%clk 0:02:58]} 5. Bd3 {[%clk 0:02:52]}  Bg6 {[%clk 0:02:55]} 6. O-O {[%clk 0:02:49]}  Nbd7 {[%clk 0:02:55]} 7. c3 {[%clk 0:02:47]}  Ne4 {[%clk 0:02:52]} 8. Ne5 {[%clk 0:02:44]}  Nxe5 {[%clk 0:02:36]} 9. Bxe5 {[%clk 0:02:42]}  c6 {[%clk 0:02:07]} 10. f3 {[%clk 0:02:40]}  Nf6 {[%clk 0:02:04]} 11. Bxg6 {[%clk 0:02:36]}  hxg6 {[%clk 0:02:03]} 12. Nd2 {[%clk 0:02:36]}  Bd6 {[%clk 0:02:01]} 13. f4 {[%clk 0:02:34]}  Be7 {[%clk 0:01:51]} 14. Qb3 {[%clk 0:02:30]}  Qb6 {[%clk 0:01:40]} 15. h3 {[%clk 0:02:28]}  O-O {[%clk 0:01:36]} 16. Bxf6 {[%clk 0:02:24]}  Bxf6 {[%clk 0:01:33]} 17. Nf3 {[%clk 0:02:23]}  Rfc8 {[%clk 0:01:29]} 18. Ne5 {[%clk 0:02:22]}  c5 {[%clk 0:01:20]} 19. Kh1 {[%clk 0:02:15]}  Qxb3 {[%clk 0:01:12]} 20. axb3 {[%clk 0:02:13]}  cxd4 {[%clk 0:01:12]} 21. exd4 {[%clk 0:02:12]}  Rc7 {[%clk 0:01:11]} 22. Ra2 {[%clk 0:02:02]}  a6 {[%clk 0:01:09]} 23. Ra4 {[%clk 0:01:52]}  Rac8 {[%clk 0:01:04]} 24. Rb4 {[%clk 0:01:48]}  b5 {[%clk 0:00:52]} 25. c4 {[%clk 0:01:34]}  dxc4 {[%clk 0:00:46]} 26. bxc4 {[%clk 0:01:32]}  Bxe5 {[%clk 0:00:44]} 27. fxe5 {[%clk 0:01:25]}  Rxc4 {[%clk 0:00:43]} 28. Rxc4 {[%clk 0:01:22]}  Rxc4 {[%clk 0:00:44]} 29. Ra1 {[%clk 0:01:17]}  Rxd4 {[%clk 0:00:40]} 30. Rxa6 {[%clk 0:01:16]}  g5 {[%clk 0:00:32]} 31. Ra8+ {[%clk 0:00:59]}  Kh7 {[%clk 0:00:32]} 32. g4 {[%clk 0:00:52]}  Rd5 {[%clk 0:00:31]} 33. Kg2 {[%clk 0:00:51]}  Rxe5 {[%clk 0:00:31]} 34. Kg3 {[%clk 0:00:51]}  Kg6 {[%clk 0:00:32]} 35. h4 {[%clk 0:00:48]}  Re3+ {[%clk 0:00:32]} 36. Kf2 {[%clk 0:00:48]}  Rh3 {[%clk 0:00:28]} 37. h5+ {[%clk 0:00:47]}  Kf6 {[%clk 0:00:28]} 38. b4 {[%clk 0:00:44]}  Rb3 {[%clk 0:00:27]} 39. Rb8 {[%clk 0:00:36]}  Rxb4 {[%clk 0:00:27]} 40. Kf3 {[%clk 0:00:36]}  Rb3+ {[%clk 0:00:26]} 41. Kg2 {[%clk 0:00:37]}  b4 {[%clk 0:00:27]} 42. Kh2 {[%clk 0:00:35]}  Rb2+ {[%clk 0:00:26]} 43. Kg3 {[%clk 0:00:34]}  b3 {[%clk 0:00:26]} 44. Rb5 {[%clk 0:00:33]}  Rb1 {[%clk 0:00:26]} 45. Kg2 {[%clk 0:00:33]}  b2 {[%clk 0:00:26]} 46. Kh2 {[%clk 0:00:32]}  Ke7 {[%clk 0:00:26]} 47. Rb6 {[%clk 0:00:30]}  e5 {[%clk 0:00:26]} 48. Kg2 {[%clk 0:00:30]}  e4 {[%clk 0:00:25]} 49. Rb4 {[%clk 0:00:27]}  e3 {[%clk 0:00:25]} 50. Re4+ {[%clk 0:00:25]}  Kd6 {[%clk 0:00:24]} 51. Rxe3 {[%clk 0:00:25]}  Rg1+ {[%clk 0:00:22]} 52. Kxg1 {[%clk 0:00:25]}  b1=Q+ {[%clk 0:00:23]} 53. Kf2 {[%clk 0:00:25]}  Qc2+ {[%clk 0:00:22]} 54. Re2 {[%clk 0:00:26]}  Qc5+ {[%clk 0:00:22]} 55. Kg3 {[%clk 0:00:24]}  Qc3+ {[%clk 0:00:22]} 56. Kf2 {[%clk 0:00:24]}  Qd4+ {[%clk 0:00:23]} 57. Kf3 {[%clk 0:00:23]}  Qf4+ {[%clk 0:00:22]} 58. Kg2 {[%clk 0:00:22]}  Qxg4+ {[%clk 0:00:23]} 0-1


[Site "https://www.chess.com"]

[Event "Titled Tuesday Blitz February 15 Early 2022"]
[White "Abdrlauf, Elham"]
[Black "Mirzoev, Azer"]
[WhiteFideId "1533533"]
[BlackFideId "13400304"]
[WhiteElo "2334"]
[BlackElo "2525"]
[Result "1-0"]
[Round "05"]
[TimeControl "180+1"]
[Date "2022.02.15"]
[WhiteClock "0:00:07"]
[BlackClock "0:00:00"]

1. e4 {[%clk 0:02:58]}  e5 {[%clk 0:02:59]} 2. Nc3 {[%clk 0:02:58]}  Nc6 {[%clk 0:03:00]} 3. Bc4 {[%clk 0:02:58]}  Bc5 {[%clk 0:02:56]} 4. Qg4 {[%clk 0:02:59]}  g6 {[%clk 0:02:53]} 5. Qf3 {[%clk 0:02:59]}  Nf6 {[%clk 0:02:46]} 6. Nge2 {[%clk 0:02:59]}  Be7 {[%clk 0:02:39]} 7. d3 {[%clk 0:02:54]}  d6 {[%clk 0:02:38]} 8. h3 {[%clk 0:02:51]}  Be6 {[%clk 0:02:36]} 9. Bh6 {[%clk 0:02:46]}  Bxc4 {[%clk 0:02:29]} 10. dxc4 {[%clk 0:02:46]}  Nd7 {[%clk 0:02:16]} 11. O-O-O {[%clk 0:02:35]}  Bg5+ {[%clk 0:02:14]} 12. Bxg5 {[%clk 0:02:36]}  Qxg5+ {[%clk 0:02:15]} 13. Kb1 {[%clk 0:02:37]}  Qf6 {[%clk 0:02:07]} 14. Qe3 {[%clk 0:02:36]}  O-O-O {[%clk 0:02:02]} 15. Nd5 {[%clk 0:02:31]}  Qe6 {[%clk 0:02:00]} 16. Nec3 {[%clk 0:02:27]}  a6 {[%clk 0:01:57]} 17. Na4 {[%clk 0:02:07]}  Kb8 {[%clk 0:01:47]} 18. Rd3 {[%clk 0:01:56]}  f5 {[%clk 0:01:40]} 19. Rhd1 {[%clk 0:01:39]}  fxe4 {[%clk 0:01:31]} 20. Qxe4 {[%clk 0:01:40]}  Rhf8 {[%clk 0:01:26]} 21. f3 {[%clk 0:01:31]}  Qf5 {[%clk 0:01:15]} 22. Qe3 {[%clk 0:01:26]}  Nd4 {[%clk 0:01:02]} 23. Qd2 {[%clk 0:01:06]}  Ne6 {[%clk 0:00:55]} 24. Qa5 {[%clk 0:01:02]}  e4 {[%clk 0:00:35]} 25. Rb3 {[%clk 0:01:01]}  Ka7 {[%clk 0:00:19]} 26. Nac3 {[%clk 0:00:28]}  exf3 {[%clk 0:00:18]} 27. Nb5+ {[%clk 0:00:26]}  Kb8 {[%clk 0:00:17]} 28. Nbxc7 {[%clk 0:00:26]}  Nec5 {[%clk 0:00:14]} 29. Nxa6+ {[%clk 0:00:24]}  Nxa6 {[%clk 0:00:14]} 30. Qxa6 {[%clk 0:00:09]}  Nc5 {[%clk 0:00:12]} 31. Qb6 {[%clk 0:00:05]}  Nxb3 {[%clk 0:00:09]} 32. Qc7+ {[%clk 0:00:05]}  Ka7 {[%clk 0:00:02]} 33. axb3 {[%clk 0:00:06]}  fxg2 {[%clk 0:00:00]} 34. Qb6+ {[%clk 0:00:07]} 1-0


[Site "https://www.chess.com"]

[Event "Titled Tuesday Blitz February 15 Early 2022"]
[White "Al Mukhaini, Shima"]
[Black "Demin, Vladimir"]
[WhiteFideId "22005854"]
[BlackFideId "4167457"]
[WhiteElo "2406"]
[BlackElo "2471"]
[Result "0-1"]
[Round "05"]
[TimeControl "180+1"]
[Date "2022.02.15"]
[WhiteClock "0:00:03"]
[BlackClock "0:00:01"]

1. d4 {[%clk 0:02:59]}  Nf6 {[%clk 0:02:59]} 2. c4 {[%clk 0:02:59]}  e6 {[%clk 0:02:59]} 3. Nc3 {[%clk 0:03:00]}  d5 {[%clk 0:03:00]} 4. e3 {[%clk 0:02:59]}  Be7 {[%clk 0:02:56]} 5. Nf3 {[%clk 0:02:58]}  O-O {[%clk 0:02:57]} 6. Bd3 {[%clk 0:02:58]}  dxc4 {[%clk 0:02:56]} 7. Bxc4 {[%clk 0:02:57]}  a6 {[%clk 0:02:56]} 8. O-O {[%clk 0:02:57]}  b5 {[%clk 0:02:56]} 9. Bb3 {[%clk 0:02:57]}  Bb7 {[%clk 0:02:56]} 10. Re1 {[%clk 0:02:56]}  c5 {[%clk 0:02:55]} 11. a4 {[%clk 0:02:39]}  c4 {[%clk 0:02:41]} 12. Bc2 {[%clk 0:02:38]}  b4 {[%clk 0:02:41]} 13. Ne2 {[%clk 0:02:38]}  b3 {[%clk 0:02:34]} 14. Bb1 {[%clk 0:02:36]}  Nc6 {[%clk 0:02:29]} 15. Nc3 {[%clk 0:02:35]}  Nb4 {[%clk 0:02:28]} 16. Ne5 {[%clk 0:02:24]}  Rc8 {[%clk 0:02:21]} 17. Qe2 {[%clk 0:02:24]}  Qc7 {[%clk 0:02:15]} 18. a5 {[%clk 0:02:13]}  Bd6 {[%clk 0:02:10]} 19. f4 {[%clk 0:02:05]}  Nfd5 {[%clk 0:02:04]} 20. Bd2 {[%clk 0:02:00]}  Nxc3 {[%clk 0:02:00]} 21. Bxc3 {[%clk 0:01:55]}  Nd5 {[%clk 0:01:56]} 22. Qh5 {[%clk 0:01:49]}  g6 {[%clk 0:01:48]} 23. Qh6 {[%clk 0:01:38]}  Nxc3 {[%clk 0:01:43]} 24. bxc3 {[%clk 0:01:37]}  Bxe5 {[%clk 0:01:25]} 25. fxe5 {[%clk 0:01:36]}  f6 {[%clk 0:01:17]} 26. exf6 {[%clk 0:01:20]}  Rxf6 {[%clk 0:01:16]} 27. Qh3 {[%clk 0:01:18]}  Rcf8 {[%clk 0:01:13]} 28. Qg3 {[%clk 0:01:08]}  Qf7 {[%clk 0:01:10]} 29. h3 {[%clk 0:01:01]}  Rf2 {[%clk 0:00:58]} 30. e4 {[%clk 0:00:58]}  Bc6 {[%clk 0:00:49]} 31. Kh2 {[%clk 0:00:52]}  Rd2 {[%clk 0:00:40]} 32. h4 {[%clk 0:00:38]}  Qf2 {[%clk 0:00:32]} 33. Qxf2 {[%clk 0:00:38]}  Rfxf2 {[%clk 0:00:30]} 34. Rg1 {[%clk 0:00:38]}  Rde2 {[%clk 0:00:29]} 35. Kg3 {[%clk 0:00:34]}  Kg7 {[%clk 0:00:22]} 36. Ra3 {[%clk 0:00:19]}  Kf6 {[%clk 0:00:20]} 37. Ra1 {[%clk 0:00:18]}  Ke7 {[%clk 0:00:20]} 38. Ra3 {[%clk 0:00:16]}  Rb2 {[%clk 0:00:20]} 39. Ra1 {[%clk 0:00:15]}  Rfe2 {[%clk 0:00:20]} 40. Kf3 {[%clk 0:00:13]}  Kd6 {[%clk 0:00:19]} 41. g4 {[%clk 0:00:07]}  Rf2+ {[%clk 0:00:12]} 42. Kg3 {[%clk 0:00:07]}  Rfe2 {[%clk 0:00:11]} 43. Kf3 {[%clk 0:00:07]}  Bd7 {[%clk 0:00:08]} 44. h5 {[%clk 0:00:07]}  e5 {[%clk 0:00:08]} 45. dxe5+ {[%clk 0:00:05]}  Kxe5 {[%clk 0:00:08]} 46. hxg6 {[%clk 0:00:05]}  hxg6 {[%clk 0:00:07]} 47. Kg3 {[%clk 0:00:05]}  Re3+ {[%clk 0:00:07]} 48. Kh4 {[%clk 0:00:05]}  Kf6 {[%clk 0:00:03]} 49. Rf1+ {[%clk 0:00:04]}  Kg7 {[%clk 0:00:04]} 50. Kg5 {[%clk 0:00:05]}  Bc6 {[%clk 0:00:03]} 51. Rf6 {[%clk 0:00:04]}  Bxe4 {[%clk 0:00:02]} 52. Bxe4 {[%clk 0:00:04]}  Rxe4 {[%clk 0:00:03]} 53. Rxg6+ {[%clk 0:00:05]}  Kf7 {[%clk 0:00:03]} 54. Rxa6 {[%clk 0:00:05]}  Rf2 {[%clk 0:00:02]} 55. Rh1 {[%clk 0:00:04]}  Re5+ {[%clk 0:00:02]} 56. Kh4 {[%clk 0:00:05]}  b2 {[%clk 0:00:02]} 57. Kg3 {[%clk 0:00:04]}  Ree2 {[%clk 0:00:02]} 58. Rb6 {[%clk 0:00:04]}  Rg2+ {[%clk 0:00:02]} 59. Kf4 {[%clk 0:00:05]}  Rgf2+ {[%clk 0:00:02]} 60. Kg3 {[%clk 0:00:04]}  Rc2 {[%clk 0:00:01]} 61. Rh7+ {[%clk 0:00:02]}  Kg8 {[%clk 0:00:01]} 62. Rc7 {[%clk 0:00:03]}  Rf8 {[%clk 0:00:01]} 63. a6 {[%clk 0:00:02]}  Rxc3+ {[%clk 0:00:01]} 64. Kh4 {[%clk 0:00:03]}  Rb3 {[%clk 0:00:01]} 0-1


[Site "https://www.chess.com"]

[Event "Titled Tuesday Blitz February 15 Early 2022"]
[White "Allahverdiyeva, Ayan"]
[Black "Rakhimgaliyev, Yerlan"]
[WhiteFideId "13412590"]
[BlackFideId "13705148"]
[WhiteElo "1910"]
[BlackElo "2261"]
[Result "0-1"]
[Round "05"]
[TimeControl "180+1"]
[Date "2022.02.15"]
[WhiteClock "0:00:04"]
[BlackClock "0:01:26"]

1. e4 {[%clk 0:02:00]}  e5 {[%clk 0:02:57]} 2. Nf3 {[%clk 0:02:00]}  d6 {[%clk 0:02:57]} 3. d4 {[%clk 0:01:59]}  exd4 {[%clk 0:02:58]} 4. Nxd4 {[%clk 0:01:59]}  Nf6 {[%clk 0:02:59]} 5. Nc3 {[%clk 0:02:00]}  Be7 {[%clk 0:02:59]} 6. Bf4 {[%clk 0:02:00]}  O-O {[%clk 0:02:59]} 7. Qd2 {[%clk 0:02:00]}  Nc6 {[%clk 0:02:57]} 8. O-O-O {[%clk 0:02:00]}  Nxd4 {[%clk 0:02:48]} 9. Qxd4 {[%clk 0:02:00]}  a6 {[%clk 0:02:49]} 10. Kb1 {[%clk 0:01:47]}  b5 {[%clk 0:02:47]} 11. e5 {[%clk 0:01:44]}  dxe5 {[%clk 0:02:42]} 12. Qxe5 {[%clk 0:01:44]}  Bd6 {[%clk 0:02:42]} 13. Qe2 {[%clk 0:01:32]}  Re8 {[%clk 0:02:39]} 14. Qd2 {[%clk 0:01:27]}  b4 {[%clk 0:02:31]} 15. Ne2 {[%clk 0:01:14]}  Ne4 {[%clk 0:02:25]} 16. Qd4 {[%clk 0:01:11]}  c5 {[%clk 0:02:01]} 17. Qd5 {[%clk 0:01:03]}  Be6 {[%clk 0:01:57]} 18. Qh5 {[%clk 0:00:47]}  Qa5 {[%clk 0:01:45]} 19. a3 {[%clk 0:00:07]}  bxa3 {[%clk 0:01:27]} 20. Bxd6 {[%clk 0:00:06]}  axb2 {[%clk 0:01:27]} 21. Rd5 {[%clk 0:00:04]}  Qa1# {[%clk 0:01:26]} 0-1


[Site "https://www.chess.com"]